fUSD/lending_fUSD_20250618
["ID","MTS","AMOUNT","RATE_DAILY","PERIOD"]
[366444179,1750257080581,-594.25,0.00018739,2]
[366444180,1750257080591,-674.18,0.00018739,2]
[366444181,1750257080601,-562.72,0.00018739,2]
[366444182,1750257080611,-581.59,0.00018739,2]
[366444183,1750257080621,-571.73,0.00018739,2]
[366444184,1750257080631,-512.65,0.00018739,2]
[366444185,1750257080641,-578.22,0.00018739,2]
[366444186,1750257080651,-502.22,0.00018739,2]
[366444187,1750257080660,-535.71,0.00018739,2]
[366444188,1750257080670,-151.0,0.00018739,2]
[366444189,1750257080680,-490.0,0.00018739,2]
[366444190,1750257080690,-528.62,0.00018739,2]
[366444191,1750257080699,-490.0,0.00018739,2]
[366444192,1750257080709,-761.74,0.00018739,2]
[366444193,1750257080718,-549.14,0.00018739,2]
[366444194,1750257080728,-711.34,0.00018739,2]
[366444195,1750257080738,-1157.46,0.00018739,2]
[366444196,1750257080747,-1138.45,0.00018739,2]
[366444197,1750257080757,-574.18,0.00018739,2]
[366444198,1750257080767,-204.27185421,0.00018739,2]
[366444199,1750257080779,-490.0,0.00018739,2]
[366444200,1750257080788,-697.93,0.00018739,2]
[366444201,1750257080798,-490.0,0.00018739,2]
[366444202,1750257080809,-1306.71,0.00018739,2]
[366444203,1750257080818,-513.85,0.00018739,2]
[366444204,1750257080829,-536.55262951,0.00018739,2]
[366444205,1750257080839,-1490.15,0.00018739,2]
[366444206,1750257080849,-1470.31,0.00018739,2]
[366444207,1750257080859,-650.64,0.00018739,2]
[366444208,1750257080869,-714.69,0.00018739,2]
[366444209,1750257080879,-1055.17,0.00018739,2]
[366444210,1750257080889,-490.0,0.00018739,2]
[366444211,1750257080899,-938.74,0.00018739,2]
[366444212,1750257080909,-752.12,0.00018739,2]
[366444213,1750257080919,-746.58,0.00018739,2]
[366444214,1750257080930,-615.79,0.00018739,2]
[366444215,1750257080940,-1184.09,0.00018739,2]
[366444216,1750257080950,-490.0,0.00018739,2]
[366444217,1750257080960,-595.15,0.00018739,2]
[366444218,1750257080971,-546.89,0.00018739,2]
[366444219,1750257080981,-892.68,0.00018739,2]
[366444220,1750257080991,-662.92,0.00018739,2]
[366444221,1750257081001,-490.0,0.00018739,2]
[366444222,1750257081011,-784.12,0.00018739,2]
[366444223,1750257081021,-151.0,0.00018739,2]
[366444224,1750257081033,-1398.48,0.00018739,2]
[366444225,1750257081044,-1387.74,0.00018739,2]
[366444226,1750257081054,-1002.15,0.00018739,2]
[366444227,1750257081064,-562.5,0.00018739,2]
[366444228,1750257081074,-490.0,0.00018739,2]
[366444229,1750257081084,-1114.11,0.00018739,2]
[366444230,1750257081094,-1158.83,0.00018739,2]
[366444231,1750257081104,-490.0,0.00018739,2]
[366444232,1750257081114,-1123.05,0.00018739,2]
[366444233,1750257081124,-585.81,0.00018739,2]
[366444234,1750257081134,-490.0,0.00018739,2]
[366444235,1750257081145,-512.44,0.00018739,2]
[366444236,1750257081155,-529.92,0.00018739,2]
[366444237,1750257081164,-619.01,0.00018739,2]
[366444238,1750257081174,-490.0,0.00018739,2]
[366444239,1750257081184,-511.25,0.00018739,2]
[366444240,1750257081194,-690.3,0.00018739,2]
[366444241,1750257081204,-1128.49,0.00018739,2]
[366444242,1750257081214,-1117.61,0.00018739,2]
[366444243,1750257081224,-490.0,0.00018739,2]
[366444244,1750257081234,-490.0,0.00018739,2]
[366444245,1750257081244,-1499.37,0.00018739,2]
[366444246,1750257081254,-705.99,0.00018739,2]
[366444247,1750257081264,-1251.05,0.00018739,2]
[366444248,1750257081276,-770.06,0.00018739,2]
[366444249,1750257081287,-490.0,0.00018739,2]
[366444250,1750257081298,-1149.1,0.00018739,2]
[366444251,1750257081309,-607.32,0.00018739,2]
[366444252,1750257081320,-697.95,0.00018739,2]
[366444253,1750257081330,-1246.97,0.00018739,2]
[366444254,1750257081340,-951.45,0.00018739,2]
[366444255,1750257081351,-490.0,0.00018739,2]
[366444256,1750257081361,-704.38,0.00018739,2]
[366444257,1750257081372,-718.12,0.00018739,2]
[366444258,1750257081383,-783.15,0.00018739,2]
[366444259,1750257081394,-897.47,0.00018739,2]
[366444260,1750257081404,-655.08,0.00018739,2]
[366444261,1750257081416,-801.94,0.00018739,2]
[366444262,1750257081428,-1547.99,0.00018739,2]
[366444263,1750257081438,-961.74,0.00018739,2]
[366444264,1750257081449,-492.13,0.00018739,2]
[366444265,1750257081458,-490.0,0.00018739,2]
[366444266,1750257081468,-1810.08,0.00018739,2]
[366444267,1750257081478,-609.2,0.00018739,2]
[366444268,1750257081489,-602.08,0.00018739,2]
[366444269,1750257081499,-683.17,0.00018739,2]
[366444270,1750257081510,-750.67,0.00018739,2]
[366444271,1750257081521,-796.54,0.00018739,2]
[366444272,1750257081532,-1113.1,0.00018739,2]
[366444273,1750257081542,-151.0,0.00018739,2]
[366444274,1750257081552,-151.0,0.00018739,2]
[366444275,1750257081563,-733.94,0.00018739,2]
[366444276,1750257081573,-1298.39,0.00018739,2]
[366444277,1750257081583,-2524.38,0.00018739,2]
[366444278,1750257081592,-843.28,0.00018739,2]
[366444279,1750257081602,-624.51,0.00018739,2]
[366444280,1750257081612,-998.1,0.00018739,2]
[366444281,1750257081624,-741.38,0.00018739,2]
[366444282,1750257081633,-1474.63,0.00018739,2]
[366444283,1750257081644,-490.0,0.00018739,2]
[366444284,1750257081653,-793.14,0.00018739,2]
[366444285,1750257081663,-614.44,0.00018739,2]
[366444286,1750257081673,-490.0,0.00018739,2]
[366444287,1750257081684,-646.95,0.00018739,2]
[366444288,1750257081694,-2116.32,0.00018739,2]
[366444289,1750257081704,-600.42,0.00018739,2]
[366444290,1750257081714,-562.77,0.00018739,2]
[366444291,1750257081724,-490.0,0.00018739,2]
[366444292,1750257081734,-1069.11,0.00018739,2]
[366444293,1750257081744,-513.47,0.00018739,2]
[366444294,1750257081754,-567.01,0.00018739,2]
[366444295,1750257081764,-1198.12,0.00018739,2]
[366444296,1750257081776,-490.0,0.00018739,2]
[366444297,1750257081786,-632.91,0.00018739,2]
[366444298,1750257081797,-1414.45,0.00018739,2]
[366444299,1750257081807,-1129.76,0.00018739,2]
[366444300,1750257081818,-490.0,0.00018739,2]
[366444301,1750257081829,-490.0,0.00018739,2]
[366444302,1750257081839,-154.567084,0.00018739,2]
[366444303,1750257081849,-168.70136,0.00018739,2]
[366444304,1750257081860,-168.70136,0.00018739,2]
[366444305,1750257081870,-151.0,0.00018739,2]
[366444306,1750257081880,-151.0,0.00018739,2]
[366444307,1750257081891,-151.0,0.00018739,2]
[366444308,1750257081902,-243.295878,0.00018739,2]
[366444309,1750257081911,-151.0,0.00018739,2]
[366444310,1750257081921,-213.378589,0.00018739,2]
[366444311,1750257081931,-213.378589,0.00018739,2]
[366444312,1750257081941,-3000.0,0.00018764,5]
[366444313,1750257081950,-753.98,0.00018781,7]
[366444314,1750257081960,-753.98,0.00018781,7]
[366444315,1750257081969,-12069.09,0.000188,2]
[366444316,1750257081979,-700.0,0.000188,6]
[366444317,1750257081989,-205.0,0.00018804,7]
[366444318,1750257081999,-1794.0,0.00018871,2]
[366444319,1750257082010,-2500.0,0.00018887,2]
[366444320,1750257082020,-2500.0,0.00018887,2]
[366444321,1750257082030,-361.51,0.00018894,2]
[366444322,1750257082040,-823.0,0.00018898,2]
[366444323,1750257082050,-154.04563599,0.000189,2]
[366444324,1750257082060,-10065.0,0.000189,2]
[366444325,1750257082069,-322.0091626,0.000189,2]
[366444326,1750257082080,-700.0,0.000189,6]
[366444327,1750257082090,-151.0,0.00018904,2]
[366444328,1750257082100,-195.313214,0.00018904,2]
[366444329,1750257082110,-151.0,0.00018904,2]
[366444330,1750257082120,-234.512948,0.00018904,2]
[366444331,1750257082130,-151.0,0.00018904,2]
[366444332,1750257082141,-151.0,0.00018904,2]
[366444333,1750257082150,-151.0,0.00018904,2]
[366444334,1750257082166,-686.14,0.00018904,2]
[366444335,1750257082176,-551.49,0.00018904,2]
[366444336,1750257082186,-777.25,0.00018904,2]
[366444337,1750257082197,-490.0,0.00018904,2]
[366444338,1750257082207,-151.0,0.00018904,2]
[366444339,1750257082217,-518.54,0.00018904,2]
[366444340,1750257082227,-560.09,0.00018904,2]
[366444341,1750257082237,-285.76,0.00018904,2]
[366444342,1750257082247,-490.0,0.00018904,2]
[366444343,1750257082257,-490.0,0.00018904,2]
[366444344,1750257082267,-781.86,0.00018904,2]
[366444345,1750257082278,-492.72,0.00018904,2]
[366444346,1750257082289,-519.56,0.00018904,2]
[366444347,1750257082299,-523.43,0.00018904,2]
[366444348,1750257082308,-990.9,0.00018904,2]
[366444349,1750257082323,-490.0,0.00018904,2]
[366444350,1750257082335,-490.0,0.00018904,2]
[366444351,1750257082345,-538.02,0.00018904,2]
[366444352,1750257082355,-763.15,0.00018904,2]
[366444353,1750257082365,-1338.65,0.00018904,2]
[366444354,1750257082375,-613.29,0.00018904,2]
[366444355,1750257082385,-743.18,0.00018904,2]
[366444356,1750257082395,-490.0,0.00018904,2]
[366444357,1750257082405,-151.0,0.00018904,2]
[366444358,1750257082417,-706.15,0.00018904,2]
[366444359,1750257082429,-551.76,0.00018904,2]
[366444360,1750257082439,-490.0,0.00018904,2]
[366444361,1750257082449,-490.0,0.00018904,2]
[366444362,1750257082461,-546.08,0.00018904,2]
[366444363,1750257082472,-658.72,0.00018904,2]
[366444364,1750257082482,-533.74,0.00018904,2]
[366444365,1750257082493,-490.0,0.00018904,2]
[366444366,1750257082503,-151.0,0.00018904,2]
[366444367,1750257082513,-151.0,0.00018904,2]
[366444368,1750257082523,-490.0,0.00018904,2]
[366444369,1750257082535,-871.98,0.00018904,2]
[366444370,1750257082545,-151.0,0.00018904,2]
[366444371,1750257082555,-490.0,0.00018904,2]
[366444372,1750257082565,-584.75,0.00018904,2]
[366444373,1750257082576,-589.43,0.00018904,2]
[366444374,1750257082587,-476.37687146,0.00018904,2]
[366444375,1750257082597,-908.44,0.00018904,2]
[366444376,1750257082607,-490.13,0.00018904,2]
[366444377,1750257082617,-442.310431,0.00018904,2]
[366444378,1750257082628,-481.24516841,0.00018904,2]
[366444379,1750257082638,-442.310431,0.00018904,2]
[366444380,1750257082648,-151.0,0.00018904,2]
[366444381,1750257082658,-670.85,0.00018904,2]
[366444382,1750257082668,-490.0,0.00018904,2]
[366444383,1750257082678,-594.25,0.00018904,2]
[366444384,1750257082688,-674.18,0.00018904,2]
[366444385,1750257082698,-562.72,0.00018904,2]
[366444386,1750257082708,-581.59,0.00018904,2]
[366444387,1750257082719,-571.73,0.00018904,2]
[366444388,1750257082729,-512.65,0.00018904,2]
[366444389,1750257082739,-578.22,0.00018904,2]
[366444390,1750257082749,-502.22,0.00018904,2]
[366444391,1750257082759,-535.71,0.00018904,2]
[366444392,1750257082769,-151.0,0.00018904,2]
[366444393,1750257082780,-490.0,0.00018904,2]
[366444394,1750257082790,-528.62,0.00018904,2]
[366444395,1750257082800,-490.0,0.00018904,2]
[366444396,1750257082810,-761.74,0.00018904,2]
[366444397,1750257082820,-549.14,0.00018904,2]
[366444398,1750257082830,-711.34,0.00018904,2]
[366444399,1750257082840,-1157.46,0.00018904,2]
[366444400,1750257082960,-1138.45,0.00018904,2]
[366444401,1750257082970,-574.18,0.00018904,2]
[366444402,1750257082980,-490.0,0.00018904,2]
[366444403,1750257082991,-697.93,0.00018904,2]
[366444404,1750257083000,-490.0,0.00018904,2]
[366444405,1750257083010,-1306.71,0.00018904,2]
[366444406,1750257083020,-513.85,0.00018904,2]
[366444407,1750257083032,-1490.15,0.00018904,2]
[366444408,1750257083043,-273.273604,0.00018904,2]
[366444409,1750257083054,-1470.31,0.00018904,2]
[366444410,1750257083064,-650.64,0.00018904,2]
[366444411,1750257083074,-714.69,0.00018904,2]
[366444412,1750257083083,-273.273604,0.00018904,2]
[366444413,1750257083093,-1055.17,0.00018904,2]
[366444414,1750257083103,-490.0,0.00018904,2]
[366444415,1750257083114,-938.74,0.00018904,2]
[366444416,1750257083124,-752.12,0.00018904,2]
[366444417,1750257083134,-151.0,0.00018904,2]
[366444418,1750257083143,-746.58,0.00018904,2]
[366444419,1750257083153,-615.79,0.00018904,2]
[366444420,1750257083163,-1184.09,0.00018904,2]
[366444421,1750257083172,-490.0,0.00018904,2]
[366444422,1750257083182,-595.15,0.00018904,2]
[366444423,1750257083191,-151.0,0.00018904,2]
[366444424,1750257083201,-546.89,0.00018904,2]
[366444425,1750257083211,-892.68,0.00018904,2]
[366444426,1750257083221,-662.92,0.00018904,2]
[366444427,1750257083230,-490.0,0.00018904,2]
[366444428,1750257083240,-784.12,0.00018904,2]
[366444429,1750257083249,-151.0,0.00018904,2]
[366444430,1750257083259,-151.0,0.00018904,2]
[366444431,1750257083269,-151.0,0.00018904,2]
[366444432,1750257083279,-151.0,0.00018904,2]
[366444433,1750257083289,-151.0,0.00018904,2]
[366444434,1750257083299,-1398.48,0.00018904,2]
[366444435,1750257083310,-151.0,0.00018904,2]
[366444436,1750257083320,-151.0,0.00018904,2]
[366444437,1750257083330,-246.301902,0.00018904,2]
[366444438,1750257083340,-224.566808,0.00018904,2]
[366444439,1750257083350,-1387.74,0.00018904,2]
[366444440,1750257083360,-1002.15,0.00018904,2]
[366444441,1750257083370,-562.5,0.00018904,2]
[366444442,1750257083379,-490.0,0.00018904,2]
[366444443,1750257083389,-1114.11,0.00018904,2]
[366444444,1750257083399,-1158.83,0.00018904,2]
[366444445,1750257083408,-499.13240682,0.00018904,2]
[366444446,1750257083422,-1123.05,0.00018904,2]
[366444447,1750257083431,-585.81,0.00018904,2]
[366444448,1750257083442,-490.0,0.00018904,2]
[366444449,1750257083452,-512.44,0.00018904,2]
[366444450,1750257083462,-529.92,0.00018904,2]
[366444451,1750257083471,-619.01,0.00018904,2]
[366444452,1750257083480,-490.0,0.00018904,2]
[366444453,1750257083490,-511.25,0.00018904,2]
[366444454,1750257083500,-690.3,0.00018904,2]
[366444455,1750257083510,-1128.49,0.00018904,2]
[366444456,1750257083520,-1117.61,0.00018904,2]
[366444457,1750257083531,-490.0,0.00018904,2]
[366444458,1750257083540,-490.0,0.00018904,2]
[366444459,1750257083550,-1499.37,0.00018904,2]
[366444460,1750257083559,-705.99,0.00018904,2]
[366444461,1750257083569,-1251.05,0.00018904,2]
[366444462,1750257083578,-770.06,0.00018904,2]
[366444463,1750257083588,-490.0,0.00018904,2]
[366444464,1750257083598,-1149.1,0.00018904,2]
[366444465,1750257083608,-607.32,0.00018904,2]
[366444466,1750257083618,-697.95,0.00018904,2]
[366444467,1750257083627,-1246.97,0.00018904,2]
[366444468,1750257083637,-951.45,0.00018904,2]
[366444469,1750257083646,-490.0,0.00018904,2]
[366444470,1750257083657,-704.38,0.00018904,2]
[366444471,1750257083667,-718.12,0.00018904,2]
[366444472,1750257083677,-783.15,0.00018904,2]
[366444473,1750257083687,-897.47,0.00018904,2]
[366444474,1750257083697,-655.08,0.00018904,2]
[366444475,1750257083709,-801.94,0.00018904,2]
[366444476,1750257083719,-1547.99,0.00018904,2]
[366444477,1750257083729,-961.74,0.00018904,2]
[366444478,1750257083738,-492.13,0.00018904,2]
[366444479,1750257083749,-490.0,0.00018904,2]
[366444480,1750257083759,-1810.08,0.00018904,2]
[366444481,1750257083769,-609.2,0.00018904,2]
[366444482,1750257083780,-602.08,0.00018904,2]
[366444483,1750257083790,-683.17,0.00018904,2]
[366444484,1750257083799,-750.67,0.00018904,2]
[366444485,1750257083810,-796.54,0.00018904,2]
[366444486,1750257083820,-1113.1,0.00018904,2]
[366444487,1750257083830,-151.0,0.00018904,2]
[366444488,1750257083840,-151.0,0.00018904,2]
[366444489,1750257083850,-733.94,0.00018904,2]
[366444490,1750257083860,-1298.39,0.00018904,2]
[366444491,1750257083870,-2524.38,0.00018904,2]
[366444492,1750257083880,-843.28,0.00018904,2]
[366444493,1750257083891,-624.51,0.00018904,2]
[366444494,1750257083901,-998.1,0.00018904,2]
[366444495,1750257083911,-151.0,0.00018904,2]
[366444496,1750257083921,-741.38,0.00018904,2]
[366444497,1750257083930,-1474.63,0.00018904,2]
[366444498,1750257083940,-151.0,0.00018904,2]
[366444499,1750257083950,-151.0,0.00018904,2]
[366444500,1750257083959,-151.0,0.00018904,2]
[366444501,1750257083970,-151.0,0.00018904,2]
[366444502,1750257083979,-151.0,0.00018904,2]
[366444503,1750257083989,-151.0,0.00018904,2]
[366444504,1750257083999,-188.127618,0.00018904,2]
[366444505,1750257084009,-490.0,0.00018904,2]
[366444506,1750257084018,-793.14,0.00018904,2]
[366444507,1750257084029,-614.44,0.00018904,2]
[366444508,1750257084039,-490.0,0.00018904,2]
[366444509,1750257084048,-646.95,0.00018904,2]
[366444510,1750257084058,-2116.32,0.00018904,2]
[366444511,1750257084068,-600.42,0.00018904,2]
[366444512,1750257084078,-562.77,0.00018904,2]
[366444513,1750257084088,-490.0,0.00018904,2]
[366444514,1750257084098,-151.0,0.00018904,2]
[366444515,1750257084108,-151.0,0.00018904,2]
[366444516,1750257084118,-151.0,0.00018904,2]
[366444517,1750257084128,-151.0,0.00018904,2]
[366444518,1750257084137,-513.47,0.00018904,2]
[366444519,1750257084146,-151.0,0.00018904,2]
[366444520,1750257084156,-1069.11,0.00018904,2]
[366444521,1750257084165,-151.0,0.00018904,2]
[366444522,1750257084175,-206.997722,0.00018904,2]
[366444523,1750257084184,-567.01,0.00018904,2]
[366444524,1750257084194,-1198.12,0.00018904,2]
[366444525,1750257084204,-490.0,0.00018904,2]
[366444526,1750257084214,-632.91,0.00018904,2]
[366444527,1750257084224,-1414.45,0.00018904,2]
[366444528,1750257084233,-1129.76,0.00018904,2]
[366444529,1750257084243,-490.0,0.00018904,2]
[366444530,1750257084252,-490.0,0.00018904,2]
[366444531,1750257084262,-168.70136,0.00018904,2]
[366444532,1750257084272,-168.70136,0.00018904,2]
[366444533,1750257084282,-168.70136,0.00018904,2]
[366444534,1750257084292,-168.70136,0.00018904,2]
[366444535,1750257084302,-168.70136,0.00018904,2]
[366444536,1750257084312,-168.70136,0.00018904,2]
[366444537,1750257084321,-168.70136,0.00018904,2]
[366444538,1750257084331,-168.70136,0.00018904,2]
[366444539,1750257084340,-168.70136,0.00018904,2]
[366444540,1750257084349,-168.70136,0.00018904,2]
[366444541,1750257084359,-168.70136,0.00018904,2]
[366444542,1750257084369,-168.70136,0.00018904,2]
[366444543,1750257084378,-168.70136,0.00018904,2]
[366444544,1750257084387,-168.701356,0.00018904,2]
[366444545,1750257084397,-257.966267,0.00018904,2]
[366444546,1750257084407,-257.966267,0.00018904,2]
[366444547,1750257084416,-257.966267,0.00018904,2]
[366444548,1750257084429,-257.966267,0.00018904,2]
[366444549,1750257084438,-257.966267,0.00018904,2]
[366444550,1750257084447,-257.966267,0.00018904,2]
[366444551,1750257084457,-257.966267,0.00018904,2]
[366444552,1750257084468,-257.966267,0.00018904,2]
[366444553,1750257084477,-257.966267,0.00018904,2]
[366444554,1750257084487,-257.966267,0.00018904,2]
[366444555,1750257084497,-257.966267,0.00018904,2]
[366444556,1750257084507,-257.966267,0.00018904,2]
[366444557,1750257084516,-257.966267,0.00018904,2]
[366444558,1750257084527,-257.966267,0.00018904,2]
[366444559,1750257084536,-257.966267,0.00018904,2]
[366444560,1750257084545,-257.966264,0.00018904,2]
[366444561,1750257084554,-151.0,0.00018904,2]
[366444562,1750257084564,-151.0,0.00018904,2]
[366444563,1750257084574,-151.0,0.00018904,2]
[366444564,1750257084584,-151.0,0.00018904,2]
[366444565,1750257084593,-151.0,0.00018904,2]
[366444566,1750257084603,-151.0,0.00018904,2]
[366444567,1750257084612,-151.0,0.00018904,2]
[366444568,1750257084621,-151.0,0.00018904,2]
[366444569,1750257084631,-151.0,0.00018904,2]
[366444570,1750257084642,-151.0,0.00018904,2]
[366444571,1750257084652,-151.0,0.00018904,2]
[366444572,1750257084661,-151.0,0.00018904,2]
[366444573,1750257084671,-151.0,0.00018904,2]
[366444574,1750257084681,-189.427194,0.00018904,2]
[366444575,1750257084690,-151.0,0.00018904,2]
[366444576,1750257084700,-151.0,0.00018904,2]
[366444577,1750257084710,-151.0,0.00018904,2]
[366444578,1750257084719,-255.58387,0.00018904,2]
[366444579,1750257084728,-151.0,0.00018904,2]
[366444580,1750257084738,-282.794084,0.00018904,2]
[366444581,1750257084748,-213.378589,0.00018904,2]
[366444582,1750257084757,-213.378589,0.00018904,2]
[366444583,1750257084767,-213.378589,0.00018904,2]
[366444584,1750257084780,-213.378589,0.00018904,2]
[366444585,1750257084789,-213.378589,0.00018904,2]
[366444586,1750257084799,-213.378589,0.00018904,2]
[366444587,1750257084808,-213.378589,0.00018904,2]
[366444588,1750257084818,-213.378589,0.00018904,2]
[366444589,1750257084828,-213.378589,0.00018904,2]
[366444590,1750257084838,-213.378589,0.00018904,2]
[366444591,1750257084848,-213.378589,0.00018904,2]
[366444592,1750257084858,-213.378589,0.00018904,2]
[366444593,1750257084868,-213.378589,0.00018904,2]
[366444594,1750257084878,-213.378593,0.00018904,2]
[366444595,1750257084887,-261.610512,0.00018904,2]
[366444596,1750257084897,-261.610512,0.00018904,2]
[366444597,1750257084907,-261.610512,0.00018904,2]
[366444598,1750257084917,-261.610512,0.00018904,2]
[366444599,1750257084927,-261.610512,0.00018904,2]
[366444600,1750257084938,-261.610512,0.00018904,2]
[366444601,1750257084948,-261.610512,0.00018904,2]
[366444602,1750257084958,-261.610512,0.00018904,2]
[366444603,1750257084968,-261.610512,0.00018904,2]
[366444604,1750257084978,-261.610512,0.00018904,2]
[366444605,1750257084988,-261.610512,0.00018904,2]
[366444606,1750257084998,-261.610512,0.00018904,2]
[366444607,1750257085008,-261.610512,0.00018904,2]
[366444608,1750257085017,-261.610512,0.00018904,2]
[366444609,1750257085030,-261.610512,0.00018904,2]
[366444610,1750257085040,-261.610508,0.00018904,2]
[366444611,1750257085049,-172.69153217,0.00018999,2]
[366444612,1750257085059,-64947.82559929,0.00018999,2]
[366444613,1750257085070,-151.0,0.00018999,2]
[366444614,1750257085079,-11331.07039719,0.00019,2]
[366444615,1750257085089,-3478.56299062,0.00019,2]
[366444616,1750257085099,-3000.0,0.00019,2]
[366444617,1750257085108,-1000.0,0.00019,3]
[366444618,1750257085118,-4023.62476177,0.00019,2]
[366444619,1750257085128,-10000.0,0.00019,7]
[366444620,1750257085139,-76579.33575131,0.00019,7]
[366444621,1750257085149,-6000.0,0.00019,2]
[366444622,1750257085158,-10000.0,0.00019,2]
[366444623,1750257085168,-6819.66173312,0.00019,2]
[366444624,1750257085177,-6819.66173312,0.00019,2]
[366444625,1750257085187,-151.0,0.00019,2]
[366444626,1750257085196,-1744.67943389,0.00019,2]
[366444627,1750257085205,-1744.67943389,0.00019,2]
[366444628,1750257085215,-1744.67943389,0.00019,2]
[366444629,1750257085225,-151.0,0.00019,2]
[366444630,1750257085234,-207.702492,0.00019,2]
[366444631,1750257085244,-151.0,0.00019,2]
[366444632,1750257085254,-244.047644,0.00019,2]
[366444633,1750257085263,-151.0,0.00019,2]
[366444634,1750257085273,-151.0,0.00019,2]
[366444635,1750257085284,-151.0,0.00019,2]
[366444636,1750257085294,-151.0,0.00019,2]
[366444637,1750257085304,-442.310431,0.00019,2]
[366444638,1750257085314,-442.310431,0.00019,2]
[366444639,1750257085323,-151.0,0.00019,2]
[366444640,1750257085333,-273.273604,0.00019,2]
[366444641,1750257085343,-273.273604,0.00019,2]
[366444642,1750257085353,-151.0,0.00019,2]
[366444643,1750257085362,-151.0,0.00019,2]
[366444644,1750257085374,-630445.6798871,0.00019,2]
[366444645,1750257085383,-630445.6798871,0.00019,2]
[366444646,1750257085393,-151.0,0.00019,2]
[366444647,1750257085405,-151.0,0.00019,2]
[366444648,1750257085421,-151.0,0.00019,2]
[366444649,1750257085431,-1039.491528,0.00019,2]
[366444650,1750257085441,-1039.491528,0.00019,2]
[366444651,1750257085452,-157.071002,0.00019,2]
[366444652,1750257085463,-157.071002,0.00019,2]
[366444653,1750257085472,-151.0,0.00019,2]
[366444654,1750257085482,-196.89492744,0.00019031,2]
[366444655,1750257085491,-753.98,0.00019055,7]
[366444656,1750257085501,-753.98,0.00019055,7]
[366444657,1750257085510,-151.0,0.00019068,2]
[366444658,1750257085520,-151.0,0.00019068,2]
[366444659,1750257085531,-264.497312,0.00019068,2]
[366444660,1750257085542,-686.14,0.00019068,2]
[366444661,1750257085552,-551.49,0.00019068,2]
[366444662,1750257085561,-777.25,0.00019068,2]
[366444663,1750257085571,-490.0,0.00019068,2]
[366444664,1750257085580,-518.54,0.00019068,2]
[366444665,1750257085590,-560.09,0.00019068,2]
[366444666,1750257085600,-285.76,0.00019068,2]
[366444667,1750257085610,-490.0,0.00019068,2]
[366444668,1750257085619,-490.0,0.00019068,2]
[366444669,1750257085629,-781.86,0.00019068,2]
[366444670,1750257085639,-492.72,0.00019068,2]
[366444671,1750257085649,-519.56,0.00019068,2]
[366444672,1750257085659,-523.43,0.00019068,2]
[366444673,1750257085668,-990.9,0.00019068,2]
[366444674,1750257085678,-490.0,0.00019068,2]
[366444675,1750257085688,-373.90120063,0.00019068,2]
[366444676,1750257085698,-538.02,0.00019068,2]
[366444677,1750257085708,-763.15,0.00019068,2]
[366444678,1750257085718,-1338.65,0.00019068,2]